bitfinex/quotes_BTCUSD_20250213
["timestamp","ask_amount","ask_price","bid_price","bid_amount"]
[1739451694758,0.05444337,95877.0,95876.0,0.1246066]
[1739451695167,0.04019278,95877.0,95876.0,0.1246066]
[1739451695367,0.04019278,95877.0,95876.0,0.2810586]
[1739451695673,0.05259738,95877.0,95876.0,0.2810586]
[1739451695849,0.04319278,95877.0,95876.0,0.2810586]
[1739451696319,0.04322634,95877.0,95876.0,0.2810586]
[1739451697358,0.02377325,95877.0,95876.0,0.38356225]
[1739451697787,0.02377325,95877.0,95876.0,0.70526225]
[1739451698000,0.02077325,95877.0,95876.0,0.70526225]
[1739451698208,0.02077325,95877.0,95876.0,0.4463066]
[1739451698425,0.00999213,95877.0,95876.0,0.4483066]
[1739451698617,0.01946601,95877.0,95876.0,0.4483066]
[1739451698921,0.00999213,95877.0,95876.0,0.4483066]
[1739451699119,0.01945648,95877.0,95876.0,0.4463066]
[1739451699362,0.15667387,95877.0,95876.0,0.4543066]
[1739451699568,0.16613822,95877.0,95876.0,0.4513066]
[1739451699972,0.16613822,95877.0,95876.0,0.4543066]
[1739451700206,0.00968822,95877.0,95876.0,0.71326225]
[1739451700608,0.00022387,95877.0,95876.0,0.70826225]
[1739451700839,0.00022387,95877.0,95876.0,0.71326225]
[1739451701686,0.00974537,95905.0,95887.0,0.156434]
[1739451701887,0.21828637,95905.0,95887.0,0.39023765]
[1739451702129,0.00974537,95905.0,95887.0,0.39023765]
[1739451702348,0.156411,95901.0,95887.0,0.39023765]
[1739451702561,0.208545,95903.0,95887.0,0.39023765]
[1739451702741,0.208545,95903.0,95887.0,0.39123765]
[1739451703041,0.00974537,95902.0,95887.0,0.39023765]
[1739451703246,0.16615537,95902.0,95887.0,0.39023765]
[1739451703455,0.16615537,95902.0,95887.0,0.39323765]
[1739451704159,0.00974537,95902.0,95887.0,0.39723765]
[1739451704409,0.00974537,95902.0,95901.0,0.282011]
[1739451704617,0.02111589,95926.0,95905.0,0.235904]
[1739451704826,0.1461053,95920.0,95905.0,0.235904]
[1739451705031,0.01786158,95916.0,95905.0,0.0795]
[1739451705243,0.156395,95911.0,95905.0,0.0795]
[1739451705643,0.00979871,95906.0,95905.0,0.0795]
[1739451705850,0.15662666,95906.0,95905.0,0.0825]
[1739451706059,0.15662666,95906.0,95905.0,0.0795]
[1739451706273,0.16620171,95906.0,95905.0,0.0795]
[1739451706474,0.16620171,95906.0,95905.0,0.0815]
[1739451706678,0.16620171,95906.0,95905.0,0.0795]
[1739451707712,0.16620171,95906.0,95905.0,0.0825]
[1739451708389,0.16620171,95906.0,95905.0,0.0795]
[1739451708564,0.16720171,95906.0,95905.0,0.0795]
[1739451709406,0.16820171,95906.0,95905.0,0.0795]
[1739451712295,0.16720171,95906.0,95905.0,0.0795]
[1739451713334,0.16620171,95906.0,95905.0,0.0795]
[1739451716600,0.16620171,95906.0,95889.0,0.3217]
[1739451716601,0.00979871,95906.0,95889.0,0.3217]
[1739451716796,0.156429,95890.0,95889.0,0.3217]
[1739451717416,0.16605283,95890.0,95889.0,0.3217]
[1739451717629,0.16605283,95890.0,95885.0,0.0479]
[1739451717630,0.00962383,95890.0,95885.0,0.0479]
[1739451717830,0.156435,95886.0,95885.0,0.0479]
[1739451718478,0.16603198,95886.0,95885.0,0.0479]
[1739451719450,0.16603198,95886.0,95885.0,0.0489]
[1739451720289,0.16603198,95886.0,95885.0,0.0499]
[1739451721698,0.00959698,95886.0,95885.0,0.0499]
[1739451722156,0.15,95898.0,95885.0,0.0499]
[1739451722361,0.21811674,95897.0,95885.0,0.0499]
[1739451722566,0.02105606,95894.0,95885.0,0.0499]
[1739451722984,0.21812988,95893.0,95885.0,0.0499]
[1739451723187,0.156429,95890.0,95885.0,0.0489]
[1739451723405,0.156431,95889.0,95885.0,0.0479]
[1739451723572,0.02105606,95894.0,95885.0,0.0479]
[1739451723772,0.00956488,95888.0,95885.0,0.0479]
[1739451723987,0.156428,95891.0,95885.0,0.0479]
[1739451724189,0.00957214,95887.0,95885.0,0.0479]
[1739451724365,0.209565,95893.0,95885.0,0.0479]
[1739451724366,0.156435,95886.0,95885.0,0.0479]
[1739451724569,0.16600516,95886.0,95885.0,0.0479]
[1739451724976,0.16600516,95886.0,95885.0,0.0489]
[1739451725787,0.16600516,95886.0,95885.0,0.0499]
[1739451726199,0.16600516,95886.0,95885.0,0.0489]
[1739451726639,0.16600516,95886.0,95885.0,0.0479]
[1739451726802,0.156437,95885.0,95884.0,0.0808]
[1739451727102,0.156448,95878.0,95877.0,0.0461]
[1739451727861,0.16601186,95878.0,95877.0,0.0461]
[1739451729264,0.17576475,95878.0,95877.0,0.0481]
[1739451729665,0.17576475,95878.0,95877.0,0.0511]
[1739451730418,0.19181546,95878.0,95877.0,0.0511]
[1739451730612,0.03536746,95878.0,95877.0,0.0511]
[1739451731484,0.19181546,95878.0,95877.0,0.005]
[1739451731699,0.19181546,95878.0,95877.0,0.0051065]
[1739451732140,0.19181546,95878.0,95877.0,0.0031065]
[1739451732349,0.34181546,95878.0,95877.0,0.0031065]
[1739451732562,0.34181546,95878.0,95877.0,0.0041065]
[1739451732794,0.34181546,95878.0,95877.0,0.0031065]
[1739451732795,0.44431911,95878.0,95877.0,0.0031065]
[1739451733026,0.44431911,95878.0,95877.0,0.0041065]
[1739451733683,0.44431911,95878.0,95877.0,0.0011065]
[1739451734125,0.44431911,95878.0,95877.0,0.0021065]
[1739451734381,0.45211901,95878.0,95877.0,0.0021065]
[1739451734592,0.45211901,95878.0,95877.0,0.0011065]
[1739451734789,0.45211901,95878.0,95877.0,0.0001065]
[1739451734990,0.45611901,95878.0,95877.0,0.0001065]
[1739451735197,0.45911901,95878.0,95877.0,0.0001065]
[1739451735443,0.47461391,95878.0,95877.0,0.0001065]
[1739451735851,0.47761391,95878.0,95877.0,0.0001065]
[1739451736847,0.49813483,95878.0,95877.0,0.0001065]
[1739451741989,0.39563118,95878.0,95877.0,0.0001065]
[1739451743396,0.23918318,95878.0,95877.0,0.0001065]
[1739451743606,0.37511026,95878.0,95877.0,0.0001065]
[1739451743829,0.06866226,95878.0,95877.0,0.1565565]
[1739451744043,0.06566226,95878.0,95877.0,0.1565565]
[1739451744255,0.0560984,95878.0,95877.0,0.0001065]
[1739451744464,0.2155464,95878.0,95877.0,0.0001065]
[1739451744671,0.06550799,95878.0,95877.0,0.2330565]
[1739451744926,0.06450799,95878.0,95877.0,0.2330565]
[1739451745146,0.0550984,95878.0,95877.0,0.2340565]
[1739451745353,0.0530984,95878.0,95877.0,0.0776065]
[1739451745563,0.06250799,95878.0,95877.0,0.0776065]
[1739451747282,0.21895599,95878.0,95877.0,0.0776065]
[1739451747893,0.06250799,95878.0,95877.0,0.0776065]
[1739451748110,0.21895599,95878.0,95877.0,0.0776065]
[1739451749513,0.06250799,95878.0,95877.0,0.2340565]
[1739451750227,0.0530984,95878.0,95877.0,0.2340565]
[1739451750561,0.03704769,95878.0,95877.0,0.2340565]
[1739451751203,0.01755279,95878.0,95877.0,0.2340565]
[1739451752828,0.00975289,95878.0,95877.0,0.2340565]
[1739451753849,0.1461053,95890.0,95886.0,0.156434]
[1739451754059,0.01659594,95890.0,95877.0,0.0776065]
[1739451754260,0.0079186,95889.0,95887.0,0.156434]
[1739451754457,0.0079186,95889.0,95888.0,0.156432]
[1739451755032,0.00022366,95892.0,95889.0,0.0465]
[1739451755232,0.00022366,95892.0,95891.0,0.156427]
[1739451755952,0.00022366,95892.0,95889.0,0.202929]
[1739451756811,0.00522366,95892.0,95889.0,0.0465]
[1739451757013,0.00522366,95892.0,95891.0,0.156427]
[1739451757344,0.00022366,95892.0,95891.0,0.156427]
[1739451757548,0.00122366,95892.0,95891.0,0.156427]
[1739451757682,0.00522366,95892.0,95891.0,0.156427]
[1739451758307,0.00622366,95892.0,95891.0,0.156427]
[1739451759045,0.00522366,95892.0,95890.0,0.156429]
[1739451759444,0.00622366,95892.0,95890.0,0.156429]
[1739451759652,0.00622366,95892.0,95889.0,0.20293]
[1739451760017,0.00522366,95892.0,95889.0,0.20293]
[1739451760237,0.00480619,95891.0,95890.0,0.156428]
[1739451760873,0.00480619,95891.0,95889.0,0.0465]
[1739451761343,0.00122366,95892.0,95889.0,0.0465]
[1739451761756,0.00480351,95891.0,95889.0,0.0465]
[1739451761968,0.156429,95890.0,95889.0,0.0465]
[1739451762386,0.00480351,95890.0,95889.0,0.0465]
[1739451762595,0.01454531,95890.0,95889.0,0.0465]
[1739451764052,0.01554531,95890.0,95889.0,0.0465]
[1739451764478,0.02333879,95890.0,95889.0,0.0465]
[1739451764887,0.02233879,95890.0,95889.0,0.0465]
[1739451765090,0.02233879,95890.0,95889.0,0.0485]
[1739451765297,0.02333879,95890.0,95889.0,0.0485]
[1739451765496,0.17976779,95890.0,95889.0,0.0485]
[1739451765906,0.17876779,95890.0,95889.0,0.0485]
[1739451766085,0.02233879,95890.0,95889.0,0.0485]
[1739451766293,0.02233879,95890.0,95889.0,0.0505]
[1739451766495,0.01753528,95890.0,95889.0,0.20693]
[1739451766697,0.02233879,95890.0,95889.0,0.20693]
[1739451767333,0.01753528,95890.0,95889.0,0.20693]
[1739451767951,0.00779348,95890.0,95889.0,0.20693]
[1739451768158,0.00779348,95890.0,95889.0,0.0505]
[1739451768771,0.156427,95891.0,95889.0,0.0505]
[1739451768979,0.00480741,95890.0,95889.0,0.0505]
[1739451769310,0.00480741,95890.0,95889.0,0.0485]
[1739451769516,0.00480741,95890.0,95889.0,0.0505]
[1739451769723,0.00480741,95890.0,95889.0,0.0485]
[1739451769994,0.01455915,95890.0,95889.0,0.0505]
[1739451770191,0.00975174,95890.0,95889.0,0.0505]
[1739451770760,0.01455915,95890.0,95889.0,0.20693]
[1739451771160,0.00975174,95890.0,95889.0,0.20693]
[1739451771991,0.00975174,95890.0,95889.0,0.30943365]
[1739451772207,0.00975174,95890.0,95889.0,0.38713365]
[1739451772762,0.00022366,95892.0,95891.0,0.233427]
[1739451772962,0.00022366,95892.0,95891.0,0.33593065]
[1739451774124,0.00998509,95892.0,95891.0,0.33993065]
[1739451775209,0.00998509,95892.0,95891.0,0.34493065]
[1739451775416,0.00022366,95892.0,95891.0,0.34493065]
[1739451777057,0.00022366,95892.0,95891.0,0.39313065]
[1739451780683,0.00022366,95892.0,95891.0,0.42562677]
[1739451781538,0.00022366,95892.0,95891.0,0.39313065]
[1739451783490,0.00022366,95892.0,95891.0,0.41613065]
[1739451783844,0.00022366,95892.0,95891.0,0.41113065]
[1739451784054,0.00022366,95892.0,95891.0,0.62273065]
[1739451784368,0.00022366,95892.0,95891.0,0.63673065]
[1739451784792,0.00022366,95892.0,95891.0,0.66920662]
[1739451786170,0.00022366,95892.0,95891.0,0.63673065]
[1739451786747,0.00022366,95892.0,95891.0,0.67920143]
[1739451789533,0.00022366,95892.0,95891.0,0.82920143]
[1739451789748,6.6e-07,95892.0,95891.0,0.82920143]
[1739451789953,6.6e-07,95892.0,95891.0,0.83920143]
[1739451790499,3.2e-07,95898.0,95897.0,0.454817]
[1739451790614,3.2e-07,95898.0,95897.0,0.58032065]
[1739451790817,3.2e-07,95898.0,95897.0,0.61279143]
[1739451791223,0.1461053,95950.0,95937.0,0.0761]
[1739451791453,0.16141721,95950.0,95937.0,0.0761]
[1739451791598,0.00490681,95949.0,95937.0,0.284569]
[1739451791809,0.156336,95947.0,95940.0,0.156347]
[1739451792218,0.16141721,95950.0,95937.0,0.284569]
[1739451792219,0.00490681,95946.0,95942.0,0.156344]
[1739451792673,0.156334,95949.0,95942.0,0.156344]
[1739451792840,0.00490681,95945.0,95943.0,0.156341]
[1739451793049,0.31774821,95950.0,95937.0,0.0761]
[1739451793050,0.16141721,95950.0,95937.0,0.0761]
[1739451793227,0.00490681,95944.0,95937.0,0.0761]
[1739451793427,0.156333,95949.0,95942.0,0.156343]
[1739451793637,0.00490681,95943.0,95942.0,0.157344]
[1739451793848,0.156333,95949.0,95941.0,0.156345]
[1739451794099,0.16141721,95950.0,95937.0,0.0761]
[1739451794305,0.00490681,95948.0,95942.0,0.156343]
[1739451794475,0.156333,95949.0,95942.0,0.156343]
[1739451794691,0.00490681,95947.0,95942.0,0.156343]
[1739451794894,0.31774821,95950.0,95942.0,0.156343]
[1739451795225,0.36986021,95950.0,95941.0,0.001]
[1739451795441,0.00490681,95949.0,95941.0,0.001]
[1739451795618,0.156344,95942.0,95941.0,0.001]
[1739451796143,0.1613261,95942.0,95941.0,0.001]
[1739451796554,0.208465,95940.0,95931.0,0.0823]
[1739451796799,0.156352,95937.0,95931.0,0.0823]
[1739451797018,0.156352,95937.0,95919.0,0.208508]
[1739451797019,0.15,95939.0,95922.0,0.075]
[1739451797234,0.156383,95919.0,95915.0,0.0078]
[1739451797472,0.1461053,95925.0,95905.0,0.075]
[1739451797687,0.1461053,95914.0,95899.0,0.15822194]
[1739451797897,0.1461053,95914.0,95899.0,0.08322194]
[1739451798099,0.208532,95909.0,95899.0,0.08322194]
[1739451798306,0.00494823,95913.0,95897.0,0.156417]
[1739451798511,0.1564,95908.0,95897.0,0.25892065]
[1739451798729,0.1564,95908.0,95898.0,0.156415]
[1739451798933,0.00494823,95907.0,95897.0,0.10250365]
[1739451799071,0.00494823,95907.0,95898.0,0.156415]
[1739451799433,0.00494823,95907.0,95901.0,0.156411]
[1739451799936,0.01558747,95909.0,95901.0,0.156411]
[1739451800139,0.00494823,95906.0,95901.0,0.156411]
[1739451800350,0.20865394,95913.0,95902.0,0.156409]
[1739451800557,0.00494823,95905.0,95902.0,0.156409]
[1739451800755,0.20865394,95913.0,95902.0,0.156409]
[1739451800982,0.156393,95912.0,95903.0,0.156407]
[1739451801188,0.16134123,95912.0,95903.0,0.156407]
[1739451801393,0.156395,95911.0,95902.0,0.156409]
[1739451801595,0.156395,95911.0,95902.0,0.158409]
[1739451801801,0.17146273,95911.0,95902.0,0.158409]
[1739451801980,0.00494823,95910.0,95902.0,0.158409]
[1739451802626,0.00494823,95910.0,95902.0,0.160409]
[1739451802745,0.00494823,95910.0,95902.0,0.158409]
[1739451803351,0.00494823,95910.0,95903.0,0.002]
[1739451803701,0.00494823,95910.0,95902.0,0.158409]
[1739451803924,0.00494823,95910.0,95908.0,0.156399]
[1739451804125,0.00494823,95910.0,95909.0,0.156398]
[1739451804370,0.00494823,95910.0,95902.0,0.00604263]
[1739451804678,0.01506773,95911.0,95902.0,0.210544]
[1739451804852,0.01506773,95911.0,95903.0,0.208544]
[1739451805088,0.00492956,95910.0,95908.0,0.156398]
[1739451805287,0.01510279,95911.0,95908.0,0.156398]
[1739451805418,0.00493312,95909.0,95904.0,0.208541]
[1739451805629,0.00013194,95913.0,95902.0,0.005]
[1739451805831,0.156395,95911.0,95905.0,0.156404]
[1739451806053,0.16132612,95912.0,95905.0,0.156404]
[1739451806254,0.156393,95912.0,95905.0,0.156404]
[1739451806456,0.00493312,95911.0,95905.0,0.156404]
[1739451806869,0.00493312,95911.0,95903.0,0.208543]
[1739451806870,0.00493312,95911.0,95904.0,0.208539]
[1739451807073,0.00493312,95911.0,95907.0,0.156401]
[1739451807276,0.00013194,95913.0,95907.0,0.156401]
[1739451807506,0.00493312,95910.0,95907.0,0.156401]
[1739451807683,0.00013194,95913.0,95907.0,0.156401]
[1739451808024,0.00493312,95909.0,95907.0,0.156401]
[1739451808164,0.00013194,95913.0,95908.0,0.156398]
[1739451809008,0.00013194,95913.0,95908.0,0.208533]
[1739451809200,0.00013194,95913.0,95907.0,0.003]
[1739451809401,0.00013194,95913.0,95911.0,0.156394]
[1739451810223,0.01553651,95913.0,95912.0,0.156393]
[1739451810397,0.00013194,95913.0,95912.0,0.156393]
[1739451810800,0.00013194,95913.0,95912.0,0.15743559]
[1739451811001,0.00013194,95913.0,95912.0,0.25993915]
[1739451811208,0.00013194,95913.0,95912.0,0.33979665]
[1739451811624,0.00013194,95913.0,95912.0,0.34279665]
[1739451812555,0.00013194,95913.0,95912.0,0.34479665]
[1739451812991,0.00013194,95913.0,95912.0,0.34279665]
[1739451813172,0.00013194,95913.0,95912.0,0.34779665]
[1739451813630,0.00013194,95913.0,95912.0,0.34479665]
[1739451813845,0.00013194,95913.0,95912.0,0.66949665]
[1739451814444,0.00013194,95913.0,95912.0,0.66649665]
[1739451814645,0.00013194,95913.0,95912.0,0.67249665]
[1739451815073,0.00013194,95913.0,95912.0,0.51610365]
[1739451815290,0.00013194,95913.0,95912.0,0.4136]
[1739451815499,0.00013194,95913.0,95912.0,0.3327]
[1739451815699,0.15652294,95913.0,95912.0,0.3327]
[1739451815909,0.16142857,95913.0,95912.0,0.3327]
[1739451816119,0.16142857,95913.0,95912.0,0.3277]
[1739451816327,0.16142857,95913.0,95912.0,0.3307]
[1739451816547,0.46103222,95913.0,95912.0,0.009]
[1739451816757,0.156412,95900.0,95899.0,0.00022365]
[1739451817181,0.16128693,95900.0,95899.0,0.00022365]
[1739451818223,0.16907829,95900.0,95899.0,0.00022365]
[1739451818439,0.17881738,95900.0,95899.0,0.00022365]
[1739451818644,0.17881738,95900.0,95899.0,0.00422365]
[1739451819892,0.17881738,95900.0,95899.0,0.00722365]
[1739451821565,0.19828121,95900.0,95899.0,0.00722365]
[1739451823174,0.17881738,95900.0,95899.0,0.00722365]
[1739451826584,0.1983041,95900.0,95899.0,0.00722365]
[1739451827341,0.1983041,95900.0,95899.0,0.00322365]
[1739451827854,0.17881738,95900.0,95899.0,0.00722365]
[1739451828709,0.02240538,95900.0,95899.0,0.00722365]
[1739451828950,0.17881738,95900.0,95899.0,0.00322365]
[1739451829156,0.17881738,95900.0,95899.0,0.00022365]
[1739451829754,0.17881738,95900.0,95899.0,0.00222365]
[1739451829964,0.17881738,95900.0,95899.0,0.00022365]
[1739451830138,0.02240538,95900.0,95899.0,0.00322365]
[1739451830337,0.02240538,95900.0,95899.0,0.00422365]
[1739451830886,0.04189505,95900.0,95899.0,0.00422365]
[1739451831015,0.04189505,95900.0,95899.0,0.16063765]
[1739451831216,0.03702012,95900.0,95899.0,0.26418398]
[1739451831462,0.03702012,95900.0,95899.0,0.2631413]
[1739451831717,0.03702012,95900.0,95899.0,0.3456413]
[1739451831919,0.03702012,95900.0,95899.0,0.6673413]
[1739451832385,0.03702012,95900.0,95899.0,0.6643413]
[1739451832566,0.00779136,95900.0,95899.0,0.7404413]
[1739451833010,0.15637,95927.0,95899.0,0.5650273]
[1739451833265,0.1461053,95920.0,95912.0,0.156393]
[1739451834168,0.00973987,95926.0,95912.0,0.232693]
[1739451834600,0.0077917,95919.0,95912.0,0.33519665]
[1739451835531,0.0077917,95919.0,95912.0,0.0803]
[1739451835764,0.0077917,95919.0,95912.0,0.238693]
[1739451835973,0.1461053,95922.0,95912.0,0.238693]
[1739451836224,0.00973987,95921.0,95912.0,0.238693]
[1739451836418,0.00973987,95921.0,95912.0,0.0823]
[1739451836648,0.00973987,95921.0,95912.0,0.238693]
[1739451836853,0.156381,95920.0,95912.0,0.238693]
[1739451837083,0.156382,95919.0,95912.0,0.238693]
[1739451837452,0.00747574,95913.0,95912.0,0.238693]
[1739451837659,0.00013194,95913.0,95912.0,0.238693]
[1739451837860,0.00747574,95913.0,95912.0,0.238693]
[1739451838108,0.00013194,95913.0,95912.0,0.238693]
[1739451838313,0.00747574,95913.0,95912.0,0.238693]
[1739451838512,0.00013194,95913.0,95912.0,0.238693]
[1739451838720,0.00747574,95913.0,95912.0,0.238693]
[1739451838926,0.00013194,95913.0,95912.0,0.238693]
[1739451839785,0.00747574,95913.0,95912.0,0.238693]
[1739451840031,0.00013194,95913.0,95912.0,0.238693]
[1739451840199,0.00747574,95913.0,95912.0,0.238693]
[1739451840412,0.00013194,95913.0,95912.0,0.238693]
[1739451840629,0.00747574,95913.0,95912.0,0.238693]
[1739451840868,0.00013194,95913.0,95912.0,0.238693]
[1739451841045,0.00747574,95913.0,95912.0,0.238693]
[1739451841304,0.15652294,95913.0,95912.0,0.006]
[1739451841514,0.16386674,95913.0,95912.0,0.006]
[1739451842194,0.17360661,95913.0,95912.0,0.006]
[1739451842407,0.45337039,95913.0,95912.0,0.006]
[1739451842832,0.45337039,95913.0,95912.0,0.002]
[1739451843022,0.156412,95900.0,95899.0,0.00022365]
[1739451843391,0.17351793,95900.0,95899.0,0.00022365]
[1739451844205,0.02489985,95900.0,95899.0,0.00022365]
[1739451845049,0.02489985,95900.0,95899.0,0.15663765]
[1739451845278,0.02489985,95900.0,95899.0,0.23453765]
[1739451845489,0.01753379,95900.0,95899.0,0.07812365]
[1739451845694,0.17394579,95900.0,95899.0,0.00022365]
[1739451845899,0.20078201,95900.0,95899.0,0.00022365]
[1739451846105,0.04437001,95900.0,95899.0,0.00022365]
[1739451846306,0.04437001,95900.0,95899.0,0.15663765]
[1739451846788,0.03700395,95900.0,95899.0,0.15663765]
[1739451848401,0.03700395,95900.0,95899.0,0.00022365]
[1739451848402,0.18562203,95900.0,95899.0,0.00022365]
[1739451848863,0.03657609,95900.0,95899.0,0.00022365]
[1739451849078,0.03657609,95900.0,95899.0,0.00222365]
[1739451849282,0.03657609,95900.0,95899.0,0.00322365]
[1739451849484,0.18562203,95900.0,95899.0,0.00322365]
[1739451849714,0.01710593,95900.0,95899.0,0.00422365]
[1739451850063,0.17351793,95900.0,95899.0,0.00422365]
[1739451850462,0.17351793,95900.0,95899.0,0.00322365]
[1739451851910,0.17351793,95900.0,95899.0,0.00522365]
[1739451852476,0.18131834,95900.0,95899.0,0.00522365]
[1739451853213,0.02490634,95900.0,95899.0,0.00522365]
[1739451853428,0.18131834,95900.0,95899.0,0.00522365]
[1739451853602,0.17157847,95900.0,95899.0,0.00522365]
[1739451853766,0.16377806,95900.0,95899.0,0.00522365]
[1739451854475,0.16377806,95900.0,95899.0,0.00222365]
[1739451855093,0.16377806,95900.0,95899.0,0.00022365]
[1739451855310,0.33425562,95900.0,95899.0,0.00022365]
[1739451855514,0.43675927,95900.0,95899.0,0.00022365]
[1739451856129,0.44651061,95900.0,95899.0,0.00022365]
[1739451857154,0.43675927,95900.0,95899.0,0.00022365]
[1739451857988,0.53675927,95900.0,95899.0,0.00022365]
[1739451859043,0.53675927,95900.0,95899.0,0.00122365]
[1739451860417,0.53675927,95900.0,95899.0,0.00022365]
[1739451860824,0.53775927,95900.0,95899.0,0.001]
[1739451861256,0.306425,95892.0,95891.0,0.0001065]
[1739451861431,0.40892865,95892.0,95891.0,0.0001065]
[1739451861651,0.41616523,95892.0,95891.0,0.0001065]
[1739451862497,0.41716523,95892.0,95891.0,0.0001065]
[1739451863251,0.42116523,95892.0,95891.0,0.0001065]
[1739451864049,0.42016523,95892.0,95891.0,0.0001065]
[1739451864263,0.42116523,95892.0,95891.0,0.0001065]
[1739451864467,0.306448,95878.0,95865.0,0.1272]
[1739451865050,0.31368458,95878.0,95865.0,0.1272]
[1739451865274,0.32342969,95878.0,95865.0,0.1272]
[1739451866019,0.33798529,95878.0,95865.0,0.1272]
[1739451866259,0.33998529,95878.0,95865.0,0.1272]
[1739451866841,0.36125404,95878.0,95865.0,0.1272]
[1739451867042,0.36425404,95878.0,95865.0,0.1272]
[1739451867651,0.36125404,95878.0,95865.0,0.1272]
[1739451867852,0.36425404,95878.0,95865.0,0.1272]
[1739451868459,0.46675769,95878.0,95865.0,0.0793]
[1739451868703,0.46475769,95878.0,95865.0,0.0793]
[1739451869077,0.46775769,95878.0,95865.0,0.0793]
[1739451869310,0.46475769,95878.0,95865.0,0.0793]
[1739451869656,0.46875769,95878.0,95865.0,0.0793]
[1739451870121,0.46575769,95878.0,95865.0,0.0793]
[1739451870321,0.47075769,95878.0,95865.0,0.0793]
[1739451870521,0.47475769,95878.0,95865.0,0.0793]
[1739451870895,0.47075769,95878.0,95865.0,0.0793]
[1739451871303,0.47075769,95878.0,95877.0,0.0011065]
[1739451871304,0.47475769,95878.0,95877.0,0.0011065]
[1739451871680,0.47075769,95878.0,95877.0,0.0001065]
[1739451872107,0.47475769,95878.0,95877.0,0.0001065]
[1739451872424,0.48255211,95878.0,95877.0,0.0001065]
[1739451873159,0.58255211,95878.0,95877.0,0.0001065]
[1739451873975,0.6020334,95878.0,95877.0,0.0001065]
[1739451880588,0.57475769,95878.0,95877.0,0.0001065]
[1739451882962,0.56501258,95878.0,95877.0,0.0001065]
[1739451884547,0.46501258,95878.0,95877.0,0.0001065]
[1739451885611,0.47281563,95878.0,95877.0,0.0001065]
[1739451886641,0.46501258,95878.0,95877.0,0.0001065]
[1739451889174,0.36250893,95878.0,95877.0,0.0500065]
[1739451889539,0.34124018,95878.0,95877.0,0.0500065]
[1739451890176,0.03479218,95878.0,95877.0,0.1323065]
[1739451890937,0.02179218,95878.0,95877.0,0.1323065]
[1739451891354,0.02679218,95878.0,95877.0,0.1323065]
[1739451891597,0.20788924,95883.0,95878.0,0.0761]
[1739451892003,0.156442,95882.0,95878.0,0.0761]
[1739451892338,0.0143545,95882.0,95878.0,0.0761]
[1739451892596,0.156446,95880.0,95878.0,0.0761]
[1739451892978,0.208587,95883.0,95878.0,0.0761]
[1739451893133,0.16232188,95882.0,95878.0,0.0761]
[1739451893333,0.00587888,95882.0,95878.0,0.0761]
[1739451893539,0.156447,95879.0,95878.0,0.0761]
[1739451893969,0.16232588,95879.0,95878.0,0.0761]
[1739451894188,0.00587888,95879.0,95878.0,0.0761]
[1739451895017,0.16232588,95879.0,95878.0,0.0761]
[1739451900406,0.156448,95878.0,95877.0,0.0001065]
[1739451900773,0.16238447,95878.0,95877.0,0.0001065]
[1739451901122,0.17214242,95878.0,95877.0,0.0001065]
[1739451901655,0.52464607,95878.0,95877.0,0.0001065]
[1739451901820,0.52564607,95878.0,95877.0,0.0001065]
[1739451902393,0.54516077,95878.0,95877.0,0.0001065]
[1739451902817,0.55296582,95878.0,95877.0,0.0001065]
[1739451903439,0.55196582,95878.0,95877.0,0.0001065]
[1739451903908,0.55696582,95878.0,95877.0,0.0001065]
[1739451904087,0.55596582,95878.0,95877.0,0.0001065]
[1739451904490,0.55696582,95878.0,95877.0,0.0001065]
[1739451906921,0.55296582,95878.0,95877.0,0.0001065]
[1739451907314,0.55696582,95878.0,95877.0,0.0001065]
[1739451907752,0.55596582,95878.0,95877.0,0.0001065]
[1739451908169,0.55696582,95878.0,95877.0,0.0001065]
[1739451911768,0.61963582,95878.0,95877.0,0.0001065]
[1739451912002,0.55696582,95878.0,95877.0,0.0001065]
[1739451916925,0.38410778,95878.0,95877.0,0.0001065]
[1739451917142,0.38902358,95878.0,95877.0,0.0001065]
[1739451917646,0.54547158,95878.0,95877.0,0.0001065]
[1739451919188,0.54147158,95878.0,95877.0,0.0001065]
[1739451919595,0.54447158,95878.0,95877.0,0.0001065]
[1739451919955,0.54147158,95878.0,95877.0,0.0001065]
[1739451920160,0.54047158,95878.0,95877.0,0.0001065]
[1739451920424,0.54247158,95878.0,95877.0,0.0001065]
[1739451920553,0.54347158,95878.0,95877.0,0.0001065]
[1739451921310,0.54447158,95878.0,95877.0,0.0001065]
[1739451922244,0.44447158,95878.0,95877.0,0.0753065]
[1739451923055,0.03623555,95878.0,95877.0,0.2317565]
[1739451923260,0.03623555,95878.0,95877.0,0.2803565]
[1739451923572,0.0284305,95878.0,95877.0,0.2803565]
[1739451924005,0.0235147,95878.0,95877.0,0.2803565]
[1739451924182,0.0215147,95878.0,95877.0,0.2803565]
[1739451924418,0.00022387,95880.0,95879.0,0.156447]
[1739451924621,0.00022387,95880.0,95879.0,0.236047]
[1739451925251,0.00022387,95880.0,95879.0,0.284647]
[1739451925880,0.00022387,95880.0,95879.0,0.287647]
[1739451926321,0.15666887,95880.0,95879.0,0.1352]
[1739451926772,0.16155792,95880.0,95879.0,0.1352]
[1739451927177,0.00511292,95880.0,95879.0,0.1352]
[1739451927593,0.00511292,95880.0,95879.0,0.291647]
[1739451928028,0.00022387,95880.0,95879.0,0.291647]
[1739451935440,0.00022387,95880.0,95879.0,0.39415065]
[1739451936435,0.00022387,95880.0,95879.0,0.39015065]
[1739451936594,0.00022387,95880.0,95879.0,0.39415065]
[1739451936993,0.00022387,95880.0,95879.0,0.40015065]
[1739451940401,0.0001065,95889.0,95888.0,0.156432]
[1739451940602,0.0001065,95889.0,95888.0,0.38493565]
[1739451941541,0.0001065,95889.0,95888.0,0.39193565]
[1739451942328,0.0001065,95889.0,95888.0,0.39893565]
[1739451943748,0.0001065,95889.0,95888.0,0.39193565]
[1739451944314,0.0001065,95889.0,95888.0,0.39893565]
[1739451948914,0.0001065,95889.0,95888.0,0.38493565]
[1739451949159,0.0001065,95889.0,95888.0,0.39193565]
[1739451949360,0.0001065,95889.0,95888.0,0.39893565]
[1739451951445,5e-07,95889.0,95888.0,0.54893565]
[1739451951654,0.09600655,95940.0,95902.0,0.1272]
[1739451951863,6.424e-05,95930.0,95905.0,0.0783]
[1739451952068,0.09607079,95930.0,95929.0,0.234665]
[1739451952276,6.424e-05,95930.0,95929.0,0.234665]
[1739451952900,6.424e-05,95930.0,95929.0,0.0783]
[1739451953115,6.424e-05,95930.0,95929.0,0.234665]
[1739451953319,0.00637512,95930.0,95929.0,0.234665]
[1739451953517,6.424e-05,95930.0,95929.0,0.234665]
[1739451953730,0.02012461,95930.0,95929.0,0.234665]